bitfinex/quotes_SOLUSD_20220307
["timestamp","ask_amount","ask_price","bid_price","bid_amount"]
[1646648740027,46.0423,82.735,82.642,105.12835611]
[1646648742628,6.55046991,82.734,82.642,105.12835611]
[1646648742827,46.0423,82.735,82.642,105.12835611]
[1646648744431,6.55036835,82.734,82.642,105.12835611]
[1646648744629,46.0423,82.735,82.642,80.56200451]
[1646648747534,2.83613526,82.734,82.642,80.56200451]
[1646648747735,18.1507,82.73,82.642,80.56200451]
[1646648748133,20.98683526,82.73,82.642,80.56200451]
[1646648751642,20.98683526,82.73,82.643,121.8]
[1646648751839,2.83613526,82.73,82.643,121.8]
[1646648752239,2.83613526,82.73,82.642,80.56200451]
[1646648752443,2.83613526,82.73,82.642,98.50510451]
[1646648752638,2.83613526,82.73,82.642,80.56200451]
[1646648752839,20.98673526,82.73,82.642,80.56200451]
[1646648756842,14.96623526,82.73,82.642,80.56200451]
[1646648757243,14.96623526,82.73,82.643,6.046]
[1646648758363,121.8,82.729,82.643,6.046]
[1646648758563,18.1539,82.72,82.643,6.046]
[1646648758763,24.7951,82.719,82.643,6.046]
[1646648758963,24.7951,82.719,82.642,80.56200451]
[1646648759562,9.3882352,82.718,82.642,80.56200451]
[1646648759763,6.55209994,82.717,82.642,80.56200451]
[1646648759963,9.3882352,82.717,82.642,80.56200451]
[1646648760264,18.1554,82.71,82.642,80.56200451]
[1646648760463,24.3441,82.709,82.642,80.56200451]
[1646648768169,3.26227183,82.72,82.643,121.8]
[1646648768370,23.2678,82.724,82.643,124.63613526]
[1646648768769,23.2678,82.724,82.645,121.8]
[1646648769170,23.2678,82.724,82.651,121.8]
[1646648769574,23.2678,82.724,82.652,2.83613526]
[1646648769874,2.41257177,82.723,82.653,24.4833]
[1646648772272,6.55102612,82.722,82.653,24.4833]
[1646648782181,18.1529,82.72,82.653,24.4833]
[1646648782380,6.55102612,82.719,82.653,24.4833]
[1646648784983,6.55102612,82.722,82.653,24.4833]
[1646648785582,9.81329795,82.723,82.653,24.4833]
[1646648787686,3.26227183,82.722,82.653,24.4833]
[1646648790690,3.26227183,82.721,82.653,24.4833]
[1646648792992,3.26227183,82.72,82.653,24.4833]
[1646648794490,3.26227183,82.719,82.653,24.4833]
[1646648796895,3.26227183,82.718,82.653,24.4833]
[1646648797093,9.81329795,82.718,82.653,24.4833]
[1646648797294,3.26227183,82.718,82.653,24.4833]
[1646648798812,3.26227183,82.717,82.653,24.4833]
[1646648799013,9.81329795,82.717,82.653,24.4833]
[1646648799214,3.26227183,82.717,82.653,24.4833]
[1646648799415,6.55102612,82.716,82.653,24.4833]
[1646648799613,3.26227183,82.717,82.653,24.4833]
[1646648799914,1.63606005,82.693,82.653,24.4833]
[1646648800916,1.63606005,82.692,82.653,24.4833]
[1646648801415,1.63606005,82.692,82.642,56.79470451]
[1646648801714,1.63606005,82.692,82.624,6.047]
[1646648801715,1.63606005,82.682,82.631,24.1907]
[1646648801915,1.63606005,82.68,82.631,24.1907]
[1646648802115,1.63606005,82.679,82.631,24.1907]
[1646648802515,1.63606005,82.679,82.632,48.57262717]
[1646648802916,1.63606005,82.682,82.632,48.57262717]
[1646648803918,1.63606005,82.681,82.632,48.57262717]
[1646648804819,1.63606005,82.684,82.632,48.57262717]
[1646648806021,1.63606005,82.689,82.633,121.8]
[1646648806419,1.63606005,82.7,82.633,121.8]
[1646648806618,24.6148,82.744,82.632,73.13897877]
[1646648806619,1.63606005,82.701,82.635,121.8]
[1646648806819,1.63606005,82.701,82.65,14.68]
[1646648807019,1.63606005,82.701,82.651,146.4086]
[1646648807220,1.63606005,82.702,82.651,146.4086]
[1646648807620,1.63606005,82.702,82.651,24.6086]
[1646648810821,1.63606005,82.701,82.651,24.6086]
[1646648811225,1.63606005,82.702,82.651,24.6086]
[1646648811422,1.63606005,82.701,82.651,24.6086]
[1646648811622,6.55073848,82.723,82.651,24.6086]
[1646648811623,1.63606005,82.702,82.651,24.6086]
[1646648812024,1.63606005,82.701,82.651,24.6086]
[1646648812223,1.63606005,82.702,82.651,24.6086]
[1646648812425,1.63606005,82.701,82.651,24.6086]
[1646648812624,1.63606005,82.702,82.651,24.6086]
[1646648814127,1.63606005,82.699,82.651,24.6086]
[1646648814527,4.18763625,82.699,82.651,24.6086]
[1646648814728,1.63606005,82.699,82.651,24.6086]
[1646648815130,1.63606005,82.7,82.651,24.6086]
[1646648816331,1.63606005,82.701,82.651,24.6086]
[1646648816733,1.63606005,82.695,82.651,24.6086]
[1646648819535,12.25901969,82.695,82.651,24.6086]
[1646648819734,1.63606005,82.694,82.651,24.6086]
[1646648819935,1.63606005,82.693,82.651,24.6086]
[1646648820134,1.63606005,82.694,82.651,24.6086]
[1646648820739,1.63606005,82.695,82.651,24.6086]
[1646648821739,1.63606005,82.694,82.651,24.6086]
[1646648824240,1.63606005,82.695,82.651,24.6086]
[1646648825641,1.63606005,82.694,82.651,24.6086]
[1646648826242,1.63606005,82.692,82.651,24.6086]
[1646648826844,1.63606005,82.693,82.651,24.6086]
[1646648827743,1.63606005,82.695,82.651,24.6086]
[1646648829848,1.63606005,82.694,82.651,24.6086]
[1646648830852,1.63606005,82.695,82.651,24.6086]
[1646648831653,1.63606005,82.694,82.651,24.6086]
[1646648832872,1.63606005,82.693,82.651,24.6086]
[1646648834678,1.63606005,82.691,82.651,24.6086]
[1646648834876,1.18848403,82.69,82.651,24.6086]
[1646648835076,1.63606005,82.691,82.651,24.6086]
[1646648839380,1.63606005,82.69,82.651,24.6086]
[1646648839784,1.63606005,82.691,82.651,24.6086]
[1646648840080,1.63606005,82.69,82.651,24.6086]
[1646648840281,1.63606005,82.691,82.651,24.6086]
[1646648840480,1.63606005,82.69,82.651,24.6086]
[1646648841283,1.63606005,82.691,82.651,24.6086]
[1646648841483,1.63606005,82.692,82.651,24.6086]
[1646648841683,1.63606005,82.694,82.651,24.6086]
[1646648842783,22.6629,82.702,82.651,24.6086]
[1646648842784,1.63606005,82.693,82.651,24.6086]
[1646648843383,1.63606005,82.694,82.651,24.6086]
[1646648843583,1.63606005,82.698,82.651,24.6086]
[1646648843783,24.29896005,82.702,82.651,24.6086]
[1646648843985,1.63606005,82.702,82.652,121.8]
[1646648844185,1.63606005,82.715,82.652,149.43366042]
[1646648844385,1.63606005,82.717,82.653,27.63366042]
[1646648844583,1.63606005,82.717,82.661,170.72705286]
[1646648844783,1.63606005,82.722,82.661,170.72705286]
[1646648844987,1.63606005,82.722,82.663,121.8]
[1646648845384,1.63606005,82.722,82.663,149.43366042]
[1646648845584,1.63606005,82.729,82.663,149.43366042]
[1646648845784,1.63606005,82.73,82.663,149.43366042]
[1646648846386,1.63606005,82.73,82.663,27.63366042]
[1646648846586,2.83613526,82.729,82.661,48.92705286]
[1646648846786,1.63606005,82.715,82.661,48.92705286]
[1646648846988,1.63606005,82.71,82.661,48.92705286]
[1646648847186,1.63606005,82.709,82.661,48.92705286]
[1646648847385,1.63606005,82.707,82.661,48.92705286]
[1646648847787,1.63606005,82.706,82.661,48.92705286]
[1646648847992,1.63606005,82.706,82.662,24.6129]
[1646648849187,1.63606005,82.704,82.662,24.6129]
[1646648850790,1.63606005,82.703,82.662,24.6129]
[1646648850995,1.63606005,82.704,82.662,24.6129]
[1646648851591,1.63606005,82.703,82.662,24.6129]
[1646648851891,1.63606005,82.704,82.662,24.6129]
[1646648852697,1.63606005,82.705,82.662,24.6129]
[1646648852892,1.63606005,82.705,82.661,48.92705286]
[1646648853096,1.63606005,82.7,82.661,48.92705286]
[1646648853293,1.63606005,82.696,82.661,48.92705286]
[1646648853493,1.63606005,82.697,82.642,23.3954]
[1646648854493,10.99191266,82.696,82.643,52.46125868]
[1646648854691,1.63606005,82.694,82.643,52.46125868]
[1646648855092,1.63606005,82.694,82.642,23.3954]
[1646648855298,1.63606005,82.689,82.615,23.4138]
[1646648855491,9.35585261,82.696,82.615,23.4138]
[1646648855492,1.63606005,82.678,82.615,23.4138]
[1646648855693,1.63606005,82.675,82.616,23.3954]
[1646648856193,18.1645,82.67,82.62,57.77346841]
[1646648856395,3.44538237,82.671,82.62,57.77346841]
[1646648857194,1.63606005,82.674,82.62,57.77346841]
[1646648857695,1.63606005,82.676,82.62,57.77346841]
[1646648858295,10.54552397,82.675,82.62,57.77346841]
[1646648858496,1.63606005,82.672,82.616,23.3954]
[1646648859095,1.63606005,82.672,82.592,6.049]
[1646648859296,1.63606005,82.672,82.593,23.4549]
[1646648859497,23.532,82.674,82.594,55.4373026]
[1646648859498,25.16806005,82.674,82.594,55.4373026]
[1646648859896,23.532,82.674,82.594,55.4373026]
[1646648860599,1.63606005,82.673,82.594,55.4373026]
[1646648861197,4.47219531,82.673,82.594,55.4373026]
[1646648861399,1.63606005,82.666,82.594,55.4373026]
[1646648861597,1.63606005,82.669,82.594,55.4373026]
[1646648861796,1.63606005,82.67,82.594,55.4373026]
[1646648862798,1.63606005,82.669,82.594,55.4373026]
[1646648862997,1.63606005,82.67,82.594,55.4373026]
[1646648863401,1.63606005,82.671,82.594,55.4373026]
[1646648863600,1.63606005,82.673,82.594,55.4373026]
[1646648864203,25.16806005,82.674,82.594,55.4373026]
[1646648864403,1.63606005,82.673,82.594,55.4373026]
[1646648865003,25.16806005,82.674,82.594,55.4373026]
[1646648865203,1.63606005,82.673,82.594,55.4373026]
[1646648865603,23.532,82.674,82.594,55.4373026]
[1646648866905,23.532,82.674,82.594,49.3873026]
[1646648867104,121.8,82.673,82.593,23.4549]
[1646648867304,5.96128832,82.668,82.578,24.94699376]
[1646648867505,1.63606005,82.666,82.579,23.0]
[1646648867704,1.63606005,82.658,82.579,23.0]
[1646648867907,0.29969481,82.657,82.579,23.0]
[1646648868104,1.63606005,82.654,82.579,23.0]
[1646648868308,0.29969481,82.651,82.579,23.0]
[1646648869107,18.1734,82.65,82.579,23.0]
[1646648869307,2.55540582,82.649,82.579,82.02972002]
[1646648869509,2.25571101,82.649,82.579,82.02972002]
[1646648869707,0.29969481,82.648,82.579,82.02972002]
[1646648870313,2.25571101,82.649,82.579,82.02972002]
[1646648870915,2.25571101,82.649,82.579,23.0]
[1646648871114,18.1703,82.64,82.579,23.0]
[1646648871411,24.7703,82.639,82.556,6.051]
[1646648871613,24.7703,82.639,82.557,23.4582]
[1646648871811,0.17610846,82.637,82.558,6.053]
[1646648872312,24.7703,82.639,82.558,6.053]
[1646648872313,4.70498595,82.628,82.558,6.053]
[1646648872514,4.70498595,82.628,82.539,6.053]
[1646648872515,0.22819357,82.625,82.539,6.053]
[1646648872713,0.22819357,82.617,82.539,6.053]
[1646648872912,0.22819357,82.615,82.539,6.053]
[1646648873114,0.22819357,82.615,82.53,6.054]
[1646648873312,0.26279559,82.613,82.53,6.054]
[1646648873731,0.26279559,82.607,82.53,6.054]
[1646648873935,18.1813,82.59,82.502,30.8799]
[1646648874136,22.7038,82.589,82.502,30.8799]
[1646648874332,2.25571101,82.588,82.503,55.05053908]
[1646648874735,2.25571101,82.588,82.502,30.8799]
[1646648874938,18.1837,82.58,82.502,30.8799]
[1646648875132,0.26279559,82.579,82.502,30.8799]
[1646648875733,15.48633619,82.587,82.502,30.8799]
[1646648875734,22.7202,82.586,82.504,121.8]
[1646648875933,22.7202,82.586,82.505,6.057]
[1646648876135,22.7202,82.586,82.505,150.55066042]
[1646648876535,22.7202,82.586,82.505,28.75066042]
[1646648876736,10.55607048,82.584,82.505,28.75066042]
[1646648877337,10.55607048,82.584,82.505,6.057]
[1646648877537,10.55607048,82.584,82.504,6.057]
[1646648877737,10.55607048,82.584,82.504,127.857]
[1646648878139,10.55607048,82.584,82.504,6.057]
[1646648878336,10.55607048,82.584,82.503,50.8620925]
[1646648878936,10.55607048,82.584,82.504,121.8]
[1646648879137,10.55607048,82.584,82.503,50.8620925]
[1646648880238,18.1839,82.58,82.503,50.8620925]
[1646648880438,121.8,82.579,82.503,50.8620925]
[1646648880639,121.8,82.579,82.5,100.0]
[1646648880640,0.31412872,82.578,82.5,100.0]
[1646648881042,0.31412872,82.576,82.5,100.0]
[1646648881243,4.33491549,82.568,82.5,100.0]
[1646648881440,4.63637206,82.558,82.5,100.0]
[1646648881640,0.31446766,82.557,82.5,100.0]
[1646648882041,0.31446766,82.554,82.5,100.0]
[1646648882441,0.31446766,82.551,82.5,100.0]
[1646648882843,127.76611462,82.549,82.5,100.0]
[1646648883042,121.8,82.539,82.5,100.0]
[1646648883243,0.31446766,82.538,82.5,100.0]
[1646648883442,121.8,82.539,82.5,100.0]
[1646648883644,2.83613526,82.538,82.5,100.0]
[1646648884243,5.69332388,82.537,82.5,100.0]
[1646648884444,0.31446766,82.536,82.5,100.0]
[1646648884645,121.8,82.529,82.5,100.0]
[1646648885044,121.8,82.527,82.5,100.0]
[1646648885245,0.31446766,82.526,82.5,100.0]
[1646648885545,7.88292815,82.526,82.5,100.0]
[1646648885745,121.8,82.525,82.5,100.0]
[1646648885944,124.63613526,82.525,82.5,100.0]
[1646648886145,121.8,82.519,82.5,100.0]
[1646648886347,0.31446766,82.518,82.5,15.17881352]
[1646648886545,5.80345992,82.517,82.5,15.17881352]
[1646648886747,121.8,82.516,82.5,15.17881352]
[1646648886945,0.31446766,82.515,82.5,15.17881352]
[1646648887349,124.63613526,82.516,82.5,15.17881352]
[1646648887847,121.8,82.515,82.5,15.17881352]
[1646648888446,5.9728625,82.508,82.5,15.17881352]
[1646648888645,0.31446766,82.507,82.44,6.058]
[1646648888850,18.2036,82.49,82.44,6.058]
[1646648889251,122.11446766,82.489,82.44,6.058]
[1646648889453,124.95060292,82.489,82.44,6.058]
[1646648889647,124.63613526,82.489,82.44,6.058]
[1646648889847,18.2081,82.48,82.44,6.058]
[1646648890050,121.8,82.479,82.44,6.058]
[1646648890248,2.83613526,82.488,82.44,6.058]
[1646648890548,14.68,82.51,82.44,6.058]
[1646648890948,32.8799,82.51,82.44,6.058]
[1646648891354,121.8,82.506,82.44,6.058]
[1646648891649,137.29139833,82.506,82.44,6.058]
[1646648891850,2.83613526,82.505,82.44,6.058]
[1646648892049,18.2016,82.5,82.44,6.058]
[1646648893248,2.83613526,82.517,82.44,6.058]
[1646648893448,22.7487,82.529,82.441,23.9733]
[1646648894451,18.197,82.52,82.441,23.9733]
[1646648894649,121.8,82.519,82.441,23.9733]
[1646648894949,12.66836125,82.513,82.441,23.9733]
[1646648895550,2.83613526,82.512,82.441,23.9733]
[1646648896150,18.2008,82.5,82.441,23.9733]
[1646648896653,121.8,82.499,82.441,23.9733]
[1646648897051,2.83613526,82.498,82.441,23.9733]
[1646648897251,18.2039,82.49,82.44,6.058]
[1646648903054,18.2039,82.49,82.434,23.6652]
[1646648906461,18.2039,82.49,82.413,23.8197]
[1646648906661,18.2063,82.48,82.413,23.8197]
[1646648906864,4.18006874,82.488,82.413,23.8197]
[1646648907061,2.83613526,82.48,82.413,23.8197]
[1646648907661,18.208,82.47,82.413,23.8197]
[1646648908664,2.83613526,82.48,82.413,23.8197]
[1646648908864,23.4591,82.486,82.413,23.8197]
[1646648909663,1.63606005,82.487,82.413,23.8197]
[1646648910865,1.63606005,82.488,82.413,23.8197]
[1646648911066,1.63606005,82.491,82.413,23.8197]
[1646648911667,1.63606005,82.486,82.413,23.8197]
[1646648912170,2.83613526,82.485,82.413,23.8197]
[1646648912367,121.8,82.479,82.413,23.8197]
[1646648912569,1.63606005,82.475,82.413,23.8197]
[1646648912769,1.63606005,82.474,82.413,23.8197]
[1646648912970,1.63606005,82.473,82.413,23.8197]
[1646648913169,1.63606005,82.472,82.413,23.8197]
[1646648913369,2.83613526,82.472,82.413,23.8197]
[1646648913672,1.63606005,82.473,82.413,23.8197]
[1646648913872,1.63606005,82.474,82.413,23.8197]
[1646648914069,2.83613526,82.472,82.413,23.8197]
[1646648915184,18.2078,82.47,82.413,23.8197]
[1646648920190,4.47219531,82.472,82.413,23.8197]
[1646648920390,1.63606005,82.47,82.413,23.8197]
[1646648920594,22.7618,82.478,82.413,23.8197]
[1646648922796,22.7618,82.478,82.414,6.064]
[1646648922993,1.63606005,82.475,82.414,6.064]
[1646648923396,1.63606005,82.472,82.414,6.064]
[1646648923795,1.63606005,82.471,82.413,23.8197]
[1646648924094,18.2079,82.47,82.413,23.8197]
[1646648924495,1.63606005,82.476,82.413,23.8197]
[1646648925398,1.63606005,82.477,82.413,23.8197]
[1646648925796,22.7618,82.478,82.413,23.8197]
[1646648925995,1.63606005,82.481,82.413,23.8197]
[1646648926197,1.63606005,82.482,82.413,23.8197]
[1646648926395,1.63606005,82.483,82.413,23.8197]
[1646648926798,1.63606005,82.484,82.413,23.8197]
[1646648927598,1.63606005,82.485,82.413,23.8197]
[1646648927997,1.63606005,82.486,82.413,23.8197]
[1646648929504,1.63606005,82.487,82.413,23.8197]
[1646648930301,1.63606005,82.488,82.413,23.8197]
[1646648930704,1.63606005,82.487,82.413,23.8197]
[1646648931104,1.63606005,82.488,82.413,23.8197]
[1646648931304,1.63606005,82.487,82.413,23.8197]
[1646648931705,1.63606005,82.489,82.413,23.8197]
[1646648932105,4.47219531,82.489,82.413,23.8197]
[1646648933006,1.63606005,82.488,82.413,23.8197]
[1646648934407,1.63606005,82.482,82.413,23.8197]
[1646648934608,1.63606005,82.483,82.413,23.8197]
[1646648935013,1.63606005,82.489,82.414,121.8]
[1646648935210,1.63606005,82.492,82.414,121.8]
[1646648935411,1.63606005,82.493,82.414,121.8]
[1646648935614,1.63606005,82.492,82.414,121.8]
[1646648936011,1.63606005,82.492,82.413,23.8197]
[1646648936209,1.63606005,82.493,82.413,23.8197]
[1646648936912,1.63606005,82.486,82.413,23.8197]
[1646648937111,18.2084,82.47,82.413,23.8197]
[1646648939812,24.3284,82.47,82.413,23.8197]
[1646648940014,124.63613526,82.469,82.413,23.8197]
[1646648940213,18.2105,82.46,82.413,23.8197]
[1646648941812,2.83613526,82.459,82.413,23.8197]
[1646648942013,18.2124,82.45,82.413,23.8197]
[1646648942213,1.63606005,82.458,82.413,23.8197]
[1646648942615,1.63606005,82.458,82.402,22.6115]
[1646648942616,1.63606005,82.455,82.402,22.6115]
[1646648942813,1.63606005,82.455,82.403,22.6392]
[1646648943014,2.83613526,82.454,82.403,22.6392]
[1646648943214,18.2124,82.45,82.403,22.6392]
[1646648944414,18.2152,82.44,82.366,23.0877]
[1646648944614,0.22387599,82.439,82.366,23.0877]
[1646648944814,0.22387599,82.439,82.367,15.77977542]
[1646648945015,18.2152,82.44,82.367,15.77977542]
[1646648945218,18.2152,82.44,82.368,23.0153]
[1646648946118,5.72338113,82.438,82.368,23.0153]
[1646648946427,122.04636691,82.419,82.353,24.8356]
[1646648946617,0.2618167,82.417,82.353,24.8356]
[1646648946815,121.8,82.417,82.328,62.77691697]
[1646648947114,2.83613526,82.416,82.329,23.0153]
[1646648947315,18.2289,82.4,82.329,38.81963703]
[1646648947615,23.8199,82.399,82.33,15.80433703]
[1646648947820,5.79102618,82.398,82.33,15.80433703]
[1646648948018,8.62716144,82.398,82.33,15.80433703]
[1646648948215,8.62716144,82.398,82.329,23.0153]
[1646648948216,121.8,82.397,82.329,23.0153]
[1646648948415,5.16447074,82.388,82.316,24.8356]
[1646648948619,4.89029846,82.388,82.316,24.8356]
[1646648948817,0.27417228,82.387,82.316,24.8356]
[1646648949013,4.89029846,82.388,82.316,24.8356]
[1646648949214,0.27417228,82.387,82.316,24.8356]
[1646648949415,5.55275014,82.396,82.316,24.8356]
[1646648949617,18.2286,82.38,82.316,24.8356]
[1646648950819,12.68910934,82.373,82.316,24.8356]
[1646648951219,12.6665953,82.384,82.316,24.8356]
[1646648951518,12.68778146,82.393,82.316,24.8356]
[1646648951718,12.66733351,82.384,82.317,23.4442]
[1646648952119,12.68760498,82.383,82.317,23.4442]
[1646648952320,18.2279,82.38,82.317,23.4442]
[1646648953021,121.8,82.379,82.317,23.4442]
[1646648953219,18.2279,82.38,82.317,23.4442]
[1646648954622,18.2279,82.38,82.26,14.68]
[1646648954623,5.34591917,82.378,82.26,14.68]
[1646648954822,5.34591917,82.378,82.242,24.9396]
[1646648954823,18.2394,82.35,82.261,48.9891]
[1646648955022,0.4595961,82.348,82.261,89.63652758]
[1646648955222,0.4595961,82.348,82.262,24.8835275]
[1646648955423,0.4595961,82.348,82.262,40.64742758]
[1646648955628,22.8504,82.349,82.263,52.49187063]
[1646648955825,22.8504,82.349,82.263,93.13929821]
[1646648956025,144.9817,82.378,82.264,146.6835275]
[1646648956244,22.8504,82.367,82.264,162.44742758]
[1646648956444,22.8504,82.367,82.266,121.8]
[1646648956846,22.8504,82.367,82.267,146.6835275]
[1646648957045,22.8504,82.367,82.27,18.2285]
[1646648957647,22.8504,82.367,82.271,24.8244]
[1646648958046,22.8504,82.367,82.272,146.6835275]
[1646648958248,22.8504,82.367,82.281,121.8]
[1646648958446,5.39387636,82.415,82.285,121.8]
[1646648958647,47.6113,82.414,82.285,121.8]
[1646648958946,12.66699112,82.404,82.285,121.8]
[1646648959155,23.3844,82.397,82.287,121.8]
[1646648959347,23.3844,82.397,82.303,121.8]
[1646648959547,23.3844,82.397,82.304,46.888]
[1646648959747,4.95027034,82.395,82.304,46.888]
[1646648960147,23.3844,82.397,82.304,46.888]
[1646648960751,18.2267,82.39,82.304,46.888]
[1646648960948,121.8,82.389,82.304,46.888]
[1646648961149,171.22772891,82.389,82.304,46.888]
[1646648961548,127.44006833,82.387,82.304,46.888]
[1646648961949,121.8,82.385,82.304,46.888]
[1646648962348,2.83613526,82.384,82.304,46.888]
[1646648962548,121.8,82.369,82.304,46.888]
[1646648962748,121.8,82.369,82.247,121.8]
[1646648962749,4.03311701,82.368,82.248,17.9493]
[1646648962948,121.8,82.367,82.25,14.68]
[1646648963150,121.8,82.367,82.251,46.2907829]
[1646648963351,124.63613526,82.367,82.251,71.1743104]
[1646648963649,124.63613526,82.367,82.251,24.8835275]
[1646648963650,0.27938187,82.348,82.251,24.8835275]
[1646648963849,0.27938187,82.346,82.244,47.6516]
[1646648964248,121.8,82.344,82.244,47.6516]
[1646648964449,14.68,82.34,82.244,47.6516]
[1646648964650,127.10856431,82.339,82.244,47.6516]
[1646648964849,162.43462001,82.339,82.244,47.6516]
[1646648965049,165.27075527,82.339,82.244,47.6516]
[1646648965251,121.8,82.319,82.213,121.8]
[1646648965450,146.1577,82.318,82.215,121.8]
[1646648965650,148.99383526,82.318,82.215,121.8]
[1646648965852,4.66332865,82.317,82.214,48.5079]
[1646648966052,0.27938187,82.315,82.214,48.5079]
[1646648966450,121.8,82.309,82.214,48.5079]
[1646648966651,0.27938187,82.297,82.214,48.5079]
[1646648966852,5.25001401,82.298,82.214,48.5079]
[1646648967250,5.25001401,82.298,82.204,114.1]
[1646648967251,0.27938187,82.295,82.201,23.329]
[1646648967651,121.8,82.279,82.201,23.329]
[1646648968056,48.3488,82.288,82.201,23.329]
[1646648968255,2.83613526,82.308,82.201,18.329]
[1646648968454,2.83613526,82.32,82.202,29.51756094]
[1646648968651,0.27938187,82.318,82.21,18.2429]
[1646648968852,0.27938187,82.318,82.202,29.51756094]
[1646648969052,2.83613526,82.317,82.211,29.51756094]
[1646648969259,0.27938187,82.316,82.213,64.08381425]
[1646648969767,29.91708516,82.319,82.212,24.5553]
[1646648969768,0.3016235,82.307,82.212,24.5553]
[1646648969955,4.92811084,82.298,82.212,24.5553]
[1646648970365,2.83613526,82.297,82.212,24.5553]
[1646648970556,0.3016235,82.296,82.212,24.5553]
[1646648970960,2.83613526,82.295,82.212,24.5553]
[1646648971155,0.3016235,82.278,82.212,24.5553]
[1646648971559,4.71900554,82.278,82.194,22.5256]
[1646648972159,0.3016235,82.287,82.194,22.5256]
[1646648972360,6.05073382,82.287,82.195,24.8087]
[1646648972762,121.8,82.259,82.179,29.51756094]
[1646648972961,121.8,82.259,82.16,105.2636]
[1646648972962,0.3016235,82.257,82.161,47.8987]
[1646648973659,2.83613526,82.256,82.161,47.8987]
[1646648973860,0.3016235,82.255,82.162,54.31682869]
[1646648974059,12.71051092,82.233,82.162,54.31682869]
[1646648975060,18.2586,82.24,82.162,54.31682869]
[1646648978964,0.3016235,82.253,82.163,121.8]
[1646648979165,2.09311342,82.368,82.163,121.8]
[1646648979166,4.87098937,82.285,82.163,146.2562276]
[1646648979467,12.70788075,82.275,82.163,146.2562276]
[1646648979665,12.70788075,82.275,82.164,24.4562276]
[1646648980064,126.99896269,82.269,82.17,18.2527]
[1646648980266,23.6648,82.274,82.17,18.2527]
[1646648980267,5.87417748,82.272,82.17,32.9327]
[1646648980470,23.6648,82.274,82.17,32.9327]
[1646648980667,23.6648,82.274,82.172,121.8]
[1646648981069,23.6648,82.274,82.183,121.8]
[1646648981268,24.6165,82.287,82.19,14.68]
[1646648981468,24.6165,82.287,82.191,24.6818]
[1646648981866,24.6165,82.287,82.192,121.8]
[1646648982466,24.6165,82.287,82.191,24.6818]
[1646648982667,12.70501156,82.293,82.191,24.6818]
[1646648983266,18.2485,82.29,82.201,58.342987]
[1646648983468,18.2485,82.29,82.202,24.0382]
[1646648984268,121.8,82.289,82.202,24.0382]
[1646648984670,121.8,82.279,82.202,24.0382]
[1646648985671,22.5285,82.287,82.202,24.0382]
[1646648985672,5.01036725,82.285,82.202,24.0382]
[1646648986275,121.8,82.279,82.202,24.0382]
[1646648986471,121.8,82.279,82.203,6.079]
[1646648987673,5.01036725,82.285,82.203,6.079]
[1646648987871,5.01036725,82.285,82.202,24.0382]
[1646648988272,18.2521,82.27,82.202,24.0382]
[1646648988472,5.01036725,82.285,82.202,24.0382]
[1646648988671,22.5285,82.287,82.202,24.0382]
[1646648988875,22.5285,82.287,82.203,6.079]
[1646648992077,22.5285,82.287,82.202,24.0382]
[1646648992482,22.5285,82.287,82.203,6.079]
[1646648993077,19.88176005,82.3,82.203,6.079]
[1646648993277,18.2457,82.3,82.203,6.079]
[1646648993479,1.63606005,82.291,82.203,6.079]
[1646648993681,1.63606005,82.292,82.203,6.079]
[1646648995079,1.63606005,82.292,82.203,24.2545]
[1646648995479,1.63606005,82.293,82.203,24.2545]
[1646648995881,1.63606005,82.295,82.203,24.2545]
[1646648996082,1.63606005,82.293,82.203,24.2545]
[1646648996483,1.63606005,82.294,82.203,24.2545]
[1646648996785,1.63606005,82.294,82.203,23.7545]
[1646648996982,18.2457,82.3,82.203,5.579]
[1646648996983,1.63606005,82.292,82.203,5.579]
[1646648997183,0.9514,82.291,82.203,5.579]
[1646648998207,0.9519,82.293,82.203,5.579]
[1646648998608,2.58796005,82.293,82.203,5.579]